[Event "*** Titled Tuesday 3|2 Blitz"]
[Site "Chess.com"]
[Date "2016.01.05"]
[Round "9"]
[White "StellarChessPro"]
[Black "saraswathii"]
[Result "1-0"]
[WhiteElo "2245"]
[BlackElo "1947"]
[TimeControl "180+2"]
[EndTime "18:52:12 PST"]
[Termination "StellarChessPro won by resignation"]

1. d4 {[%clk 0:03:01.9]} 1... Nc6 {[%clk 0:02:59.4]} 2. Nf3 {[%clk 0:03:02.7]}
2... d5 {[%clk 0:02:49.6]} 3. e3 {[%clk 0:03:03.5]} 3... Bf5 {[%clk 0:02:36.4]}
4. a3 {[%clk 0:03:02.4]} 4... e6 {[%clk 0:02:28.2]} 5. c4 {[%clk 0:03:03.4]}
5... Nf6 {[%clk 0:02:24]} 6. Nc3 {[%clk 0:03:04.1]} 6... Be7 {[%clk 0:02:15.7]}
7. Ne5 {[%clk 0:03:04.4]} 7... O-O {[%clk 0:02:10.4]} 8. Be2 {[%clk 0:03:01.2]}
8... dxc4 {[%clk 0:02:07]} 9. Nxc6 {[%clk 0:02:59.2]} 9... bxc6 {[%clk
0:02:07.2]} 10. Bxc4 {[%clk 0:03:00.1]} 10... c5 {[%clk 0:02:08.2]} 11. d5
{[%clk 0:02:54.3]} 11... exd5 {[%clk 0:02:06.9]} 12. Nxd5 {[%clk 0:02:55.2]}
12... c6 {[%clk 0:01:54.2]} 13. Nxe7+ {[%clk 0:02:52.6]} 13... Qxe7 {[%clk
0:01:54.4]} 14. O-O {[%clk 0:02:54.2]} 14... Rad8 {[%clk 0:01:52.9]} 15. Qe2
{[%clk 0:02:55.3]} 15... Ne4 {[%clk 0:01:48.2]} 16. f3 {[%clk 0:02:47.9]} 16...
Nd6 {[%clk 0:01:43.3]} 17. Ba2 {[%clk 0:02:46.4]} 17... c4 {[%clk 0:01:31.5]}
18. e4 {[%clk 0:02:46.6]} 18... Be6 {[%clk 0:01:31.4]} 19. Bf4 {[%clk
0:02:47.1]} 19... Nb5 {[%clk 0:01:14.5]} 20. Be3 {[%clk 0:02:41.5]} 20... Rd3
{[%clk 0:01:06.2]} 21. Rac1 {[%clk 0:02:33.6]} 21... Nd4 {[%clk 0:00:52.9]} 22.
Bxd4 {[%clk 0:02:25.9]} 22... Rxd4 {[%clk 0:00:54.8]} 23. Rc2 {[%clk 0:02:26.8]}
23... Qc5 {[%clk 0:00:40.6]} 24. Qf2 {[%clk 0:02:27.8]} 24... Rfd8 {[%clk
0:00:35.4]} 25. h3 {[%clk 0:02:28.3]} 25... Qb6 {[%clk 0:00:30.7]} 26. Kh2
{[%clk 0:02:20.9]} 26... c5 {[%clk 0:00:23.4]} 27. Rfc1 {[%clk 0:02:18.3]} 27...
Qd6+ {[%clk 0:00:20.1]} 28. Qg3 {[%clk 0:02:18]} 28... Qxg3+ {[%clk 0:00:19.8]}
29. Kxg3 {[%clk 0:02:19.9]} 29... Rd2 {[%clk 0:00:18.6]} 30. Bxc4 {[%clk
0:02:19]} 30... Bxc4 {[%clk 0:00:18.3]} 31. Rxd2 {[%clk 0:02:19.9]} 31... Rxd2
{[%clk 0:00:17.3]} 32. Rxc4 {[%clk 0:02:21.3]} 32... Rxb2 {[%clk 0:00:16.9]} 33.
Rxc5 {[%clk 0:02:22.5]} 33... g6 {[%clk 0:00:17.3]} 34. Rc8+ {[%clk 0:02:19.6]}
34... Kg7 {[%clk 0:00:18]} 35. Rc7 {[%clk 0:02:21.5]} 35... a5 {[%clk
0:00:17.2]} 36. Rc5 {[%clk 0:02:19.9]} 36... a4 {[%clk 0:00:16.4]} 37. Rc4
{[%clk 0:02:20.9]} 37... h5 {[%clk 0:00:12.5]} 38. h4 {[%clk 0:02:21.6]} 38...
Rb3 {[%clk 0:00:10.8]} 39. Rxa4 {[%clk 0:02:22.2]} 39... Rc3 {[%clk 0:00:09.4]}
40. Ra6 {[%clk 0:02:21.9]} 40... Rb3 {[%clk 0:00:09.7]} 41. Kf4 {[%clk
0:02:21.7]} 41... Rb2 {[%clk 0:00:10.4]} 42. g3 {[%clk 0:02:22.5]} 42... Rb3
{[%clk 0:00:08]} 43. a4 {[%clk 0:02:23.7]} 43... Ra3 {[%clk 0:00:08.3]} 44. e5
{[%clk 0:02:21]} 44... Rb3 {[%clk 0:00:08.8]} 45. Ra7 {[%clk 0:02:21]} 45...
Rb4+ {[%clk 0:00:10.1]} 46. Ke3 {[%clk 0:02:22.2]} 46... Rb3+ {[%clk 0:00:08.3]}
47. Ke4 {[%clk 0:02:23.5]} 47... Rb4+ {[%clk 0:00:09.3]} 48. Kd5 {[%clk
0:02:24.7]} 48... Rb3 {[%clk 0:00:08]} 49. f4 {[%clk 0:02:25.7]} 49... Rb4
{[%clk 0:00:07.1]} 50. e6 {[%clk 0:02:26.2]} 50... Kf8 {[%clk 0:00:07.1]} 51.
Rxf7+ {[%clk 0:02:26.5]} 51... Ke8 {[%clk 0:00:08]} 52. Ke5 {[%clk 0:02:26]}
52... Rxa4 {[%clk 0:00:08.8]} 53. Rg7 {[%clk 0:02:26.5]} 53... Ra5+ {[%clk
0:00:09.2]} 54. Kf6 {[%clk 0:02:26.4]} 54... Kd8 {[%clk 0:00:09.6]} 55. Rg8+
{[%clk 0:02:26.4]} 55... Kc7 {[%clk 0:00:10.4]} 56. e7 {[%clk 0:02:27.8]} 1-0

[Event "*** Titled Tuesday 3|2 Blitz"]
[Site "Chess.com"]
[Date "2016.01.05"]
[Round "9"]
[White "cheese111"]
[Black "DeviatkinAndrey"]
[Result "1-0"]
[WhiteElo "2292"]
[BlackElo "2457"]
[TimeControl "180+2"]
[EndTime "18:52:50 PST"]
[Termination "cheese111 won by resignation"]

1. e4 {[%clk 0:03:01.9]} 1... d5 {[%clk 0:03:00.7]} 2. exd5 {[%clk 0:03:01.1]}
2... Nf6 {[%clk 0:03:02.1]} 3. Nf3 {[%clk 0:03:02]} 3... Nxd5 {[%clk 0:03:00.8]}
4. d4 {[%clk 0:03:01.8]} 4... g6 {[%clk 0:03:02.2]} 5. Be2 {[%clk 0:03:02]} 5...
Bg7 {[%clk 0:03:02.8]} 6. O-O {[%clk 0:03:03.3]} 6... O-O {[%clk 0:03:03.7]} 7.
c4 {[%clk 0:03:04.1]} 7... Nb6 {[%clk 0:03:04.4]} 8. h3 {[%clk 0:03:01.1]} 8...
Nc6 {[%clk 0:03:01.2]} 9. Be3 {[%clk 0:03:01.5]} 9... e5 {[%clk 0:03:02]} 10. d5
{[%clk 0:02:49.3]} 10... Ne7 {[%clk 0:02:58.6]} 11. Nc3 {[%clk 0:02:46.8]} 11...
Nf5 {[%clk 0:02:58.5]} 12. Bg5 {[%clk 0:02:18.1]} 12... f6 {[%clk 0:02:48.9]}
13. Bd2 {[%clk 0:02:16]} 13... c5 {[%clk 0:02:46.1]} 14. Ne4 {[%clk 0:02:00.9]}
14... Nd7 {[%clk 0:02:16.6]} 15. b4 {[%clk 0:01:49.5]} 15... Qc7 {[%clk
0:01:55.1]} 16. bxc5 {[%clk 0:01:35.1]} 16... Nxc5 {[%clk 0:01:54.9]} 17. Nxc5
{[%clk 0:01:36.1]} 17... Qxc5 {[%clk 0:01:55.8]} 18. Rb1 {[%clk 0:01:37.3]}
18... b6 {[%clk 0:01:43.1]} 19. Bb4 {[%clk 0:01:34.7]} 19... Qc7 {[%clk
0:01:44.3]} 20. Bxf8 {[%clk 0:01:27.2]} 20... Bxf8 {[%clk 0:01:45.5]} 21. Nd2
{[%clk 0:01:22.6]} 21... Nd4 {[%clk 0:01:46]} 22. Ne4 {[%clk 0:01:14.9]} 22...
Kg7 {[%clk 0:01:38.7]} 23. Bf3 {[%clk 0:00:48.6]} 23... f5 {[%clk 0:01:13.2]}
24. Ng5 {[%clk 0:00:46.5]} 24... Bc5 {[%clk 0:01:04.4]} 25. d6 {[%clk
0:00:24.2]} 25... Qd8 {[%clk 0:01:04.7]} 26. Bxa8 {[%clk 0:00:17.4]} 26... Qxg5
{[%clk 0:01:05.7]} 27. Kh1 {[%clk 0:00:16]} 27... Bxd6 {[%clk 0:01:05.4]} 28. f4
{[%clk 0:00:12.9]} 28... Qg3 {[%clk 0:01:05.2]} 29. Qe1 {[%clk 0:00:13.6]} 29...
exf4 {[%clk 0:00:52.2]} 30. Qxg3 {[%clk 0:00:10.9]} 30... fxg3 {[%clk
0:00:53.6]} 31. Rbd1 {[%clk 0:00:12.8]} 31... Bc5 {[%clk 0:00:54]} 32. Rfe1
{[%clk 0:00:13.9]} 32... Bd7 {[%clk 0:00:50.6]} 33. Rxd4 {[%clk 0:00:13.5]}
33... Bxd4 {[%clk 0:00:45.7]} 34. Re7+ {[%clk 0:00:13.2]} 34... Kf6 {[%clk
0:00:44.2]} 35. Rxd7 {[%clk 0:00:15.1]} 35... Bf2 {[%clk 0:00:44.2]} 36. Rxa7
{[%clk 0:00:14.6]} 36... h5 {[%clk 0:00:45.2]} 37. Bf3 {[%clk 0:00:13.1]} 37...
h4 {[%clk 0:00:46.2]} 38. Ra6 {[%clk 0:00:11.6]} 38... Kg5 {[%clk 0:00:47.5]}
39. a4 {[%clk 0:00:11.6]} 39... Be3 {[%clk 0:00:47.8]} 40. a5 {[%clk 0:00:12.4]}
40... bxa5 {[%clk 0:00:47.7]} 41. Rxa5 {[%clk 0:00:14.3]} 41... Kf4 {[%clk
0:00:48.9]} 42. Rd5 {[%clk 0:00:15]} 42... g5 {[%clk 0:00:48.9]} 43. Rd3 {[%clk
0:00:14.5]} 43... Bc5 {[%clk 0:00:48.9]} 44. Rd5 {[%clk 0:00:13.7]} 44... Be3
{[%clk 0:00:49.8]} 45. Be2 {[%clk 0:00:14.7]} 45... Ke4 {[%clk 0:00:48.6]} 46.
Bd3+ {[%clk 0:00:15]} 1-0

[Event "*** Titled Tuesday 3|2 Blitz"]
[Site "Chess.com"]
[Date "2016.01.05"]
[Round "9"]
[White "Assasin14"]
[Black "tac49"]
[Result "0-1"]
[WhiteElo "1998"]
[BlackElo "2426"]
[TimeControl "180+2"]
[EndTime "18:54:34 PST"]
[Termination "tac49 won by resignation"]

1. e4 {[%clk 0:03:01.6]} 1... d5 {[%clk 0:02:57.9]} 2. exd5 {[%clk 0:03:01.4]}
2... Qxd5 {[%clk 0:02:59.8]} 3. Nf3 {[%clk 0:03:00.8]} 3... Nc6 {[%clk
0:02:58.1]} 4. d4 {[%clk 0:02:55.4]} 4... Bg4 {[%clk 0:02:57.2]} 5. Nc3 {[%clk
0:02:42.3]} 5... Qh5 {[%clk 0:02:56]} 6. Be2 {[%clk 0:02:42.7]} 6... O-O-O
{[%clk 0:02:55]} 7. Be3 {[%clk 0:02:36.6]} 7... Nf6 {[%clk 0:02:52.5]} 8. h3
{[%clk 0:02:28.2]} 8... e5 {[%clk 0:02:26.6]} 9. Rg1 {[%clk 0:00:44.1]} 9...
Nxd4 {[%clk 0:01:21.9]} 10. Bxd4 {[%clk 0:00:14.3]} 10... Bxf3 {[%clk
0:01:16.7]} 11. Bxf3 {[%clk 0:00:15.2]} 11... Qg6 {[%clk 0:01:14.8]} 12. Bg4+
{[%clk 0:00:09.4]} 12... Nxg4 {[%clk 0:01:13.3]} 13. Qxg4+ {[%clk 0:00:10.9]}
13... Qxg4 {[%clk 0:01:13.2]} 14. hxg4 {[%clk 0:00:12.8]} 14... Rxd4 {[%clk
0:01:11]} 15. f3 {[%clk 0:00:13.1]} 15... Bc5 {[%clk 0:01:09.6]} 16. Ke2 {[%clk
0:00:13.9]} 16... h5 {[%clk 0:01:03.6]} 17. gxh5 {[%clk 0:00:14.5]} 17... Rxh5
{[%clk 0:01:05.5]} 18. Ne4 {[%clk 0:00:14.1]} 18... Rxe4+ {[%clk 0:01:05.3]} 19.
fxe4 {[%clk 0:00:15.6]} 19... Bxg1 {[%clk 0:01:05.8]} 20. Rxg1 {[%clk
0:00:17.5]} 20... Kd7 {[%clk 0:01:06.7]} 21. Kf3 {[%clk 0:00:17.2]} 21... Ke6
{[%clk 0:01:06.9]} 22. Rd1 {[%clk 0:00:16.8]} 22... Rh4 {[%clk 0:01:04.9]} 23.
Rd8 {[%clk 0:00:16.3]} 23... a5 {[%clk 0:00:54.4]} 24. Rc8 {[%clk 0:00:15.1]}
24... Kd7 {[%clk 0:00:53.7]} 25. Rf8 {[%clk 0:00:15.6]} 25... Rf4+ {[%clk
0:00:54.6]} 26. Ke3 {[%clk 0:00:15.8]} 26... b6 {[%clk 0:00:53]} 27. Rg8 {[%clk
0:00:16.2]} 27... g6 {[%clk 0:00:53.2]} 28. Rf8 {[%clk 0:00:16.7]} 28... Rf1
{[%clk 0:00:49.9]} 29. Ke2 {[%clk 0:00:17.5]} 29... Rf6 {[%clk 0:00:50.8]} 30.
Ke3 {[%clk 0:00:18.6]} 30... Ke7 {[%clk 0:00:50.4]} 31. Rc8 {[%clk 0:00:19.4]}
31... Rc6 {[%clk 0:00:52.3]} 32. c3 {[%clk 0:00:20.7]} 32... Ke6 {[%clk
0:00:34.9]} 33. Re8+ {[%clk 0:00:21.5]} 33... Kf6 {[%clk 0:00:35]} 34. g4 {[%clk
0:00:20.9]} 34... Kg5 {[%clk 0:00:34.8]} 35. Rxe5+ {[%clk 0:00:21.5]} 35... Kxg4
{[%clk 0:00:34.7]} 36. Re7 {[%clk 0:00:23.1]} 36... f5 {[%clk 0:00:30.1]} 37.
exf5 {[%clk 0:00:23.9]} 37... Kxf5 {[%clk 0:00:28.5]} 38. Rf7+ {[%clk
0:00:23.7]} 38... Kg4 {[%clk 0:00:29]} 39. Rg7 {[%clk 0:00:22.4]} 39... g5
{[%clk 0:00:29.2]} 40. Ke4 {[%clk 0:00:22.7]} 40... a4 {[%clk 0:00:29.3]} 41.
Kd5 {[%clk 0:00:20.7]} 41... Rc5+ {[%clk 0:00:28.4]} 42. Ke4 {[%clk 0:00:21.8]}
42... a3 {[%clk 0:00:28.7]} 43. bxa3 {[%clk 0:00:20.5]} 43... Rxc3 {[%clk
0:00:29.8]} 44. a4 {[%clk 0:00:21.8]} 44... Rc4+ {[%clk 0:00:29.8]} 45. Ke3
{[%clk 0:00:20.7]} 45... Rxa4 {[%clk 0:00:30.7]} 46. Rxc7 {[%clk 0:00:21.7]}
46... Rxa2 {[%clk 0:00:30.8]} 47. Rc4+ {[%clk 0:00:22.7]} 47... Kg3 {[%clk
0:00:31]} 48. Rb4 {[%clk 0:00:24]} 48... Ra3+ {[%clk 0:00:27.2]} 49. Ke2 {[%clk
0:00:24.6]} 49... g4 {[%clk 0:00:23.1]} 50. Rxb6 {[%clk 0:00:24.9]} 50... Kg2
{[%clk 0:00:24.2]} 51. Ke1 {[%clk 0:00:21.1]} 51... Re3+ {[%clk 0:00:21]} 52.
Kd2 {[%clk 0:00:21.6]} 52... Re8 {[%clk 0:00:21]} 53. Rb3 {[%clk 0:00:21.7]}
53... g3 {[%clk 0:00:21.5]} 54. Kd3 {[%clk 0:00:22.6]} 54... Kf2 {[%clk
0:00:19.9]} 55. Rb2+ {[%clk 0:00:23.2]} 55... Kf3 {[%clk 0:00:20.6]} 56. Kd4
{[%clk 0:00:24.2]} 56... g2 {[%clk 0:00:21.1]} 57. Rb3+ {[%clk 0:00:25.6]} 57...
Kf2 {[%clk 0:00:21.5]} 58. Rb2+ {[%clk 0:00:26.8]} 58... Re2 {[%clk 0:00:22.7]}
59. Rb1 {[%clk 0:00:28]} 59... g1=Q {[%clk 0:00:23.8]} 60. Rxg1 {[%clk
0:00:29.7]} 60... Kxg1 {[%clk 0:00:25.7]} 61. Kd3 {[%clk 0:00:30.9]} 61... Kf2
{[%clk 0:00:27.6]} 0-1

[Event "*** Titled Tuesday 3|2 Blitz"]
[Site "Chess.com"]
[Date "2016.01.05"]
[Round "9"]
[White "tigra"]
[Black "Hikaru"]
[Result "0-1"]
[WhiteElo "2328"]
[BlackElo "2875"]
[TimeControl "180+2"]
[EndTime "18:54:38 PST"]
[Termination "Hikaru won by resignation"]

1. e4 {[%clk 0:03:01.9]} 1... b6 {[%clk 0:02:59.3]} 2. d4 {[%clk 0:03:02.1]}
2... Bb7 {[%clk 0:03:01.2]} 3. Bd3 {[%clk 0:03:03.8]} 3... e6 {[%clk 0:03:02.6]}
4. Nf3 {[%clk 0:03:04.1]} 4... d5 {[%clk 0:03:04]} 5. e5 {[%clk 0:03:04.2]} 5...
c5 {[%clk 0:03:04.8]} 6. c3 {[%clk 0:03:04.9]} 6... Qd7 {[%clk 0:03:06.4]} 7.
Qe2 {[%clk 0:02:58.6]} 7... Ne7 {[%clk 0:03:07.3]} 8. b4 {[%clk 0:02:51.1]} 8...
c4 {[%clk 0:03:05.9]} 9. Bc2 {[%clk 0:02:51.9]} 9... a5 {[%clk 0:03:07.6]} 10.
bxa5 {[%clk 0:02:40.1]} 10... b5 {[%clk 0:02:58.5]} 11. a4 {[%clk 0:02:31.5]}
11... Rxa5 {[%clk 0:02:59]} 12. Ba3 {[%clk 0:02:32.6]} 12... bxa4 {[%clk
0:02:58.5]} 13. Bd6 {[%clk 0:02:24.1]} 13... Na6 {[%clk 0:02:52.2]} 14. Ng5
{[%clk 0:02:17.8]} 14... Ng6 {[%clk 0:02:46.4]} 15. Bxf8 {[%clk 0:02:05.8]}
15... Nxf8 {[%clk 0:02:41.9]} 16. f4 {[%clk 0:01:40.9]} 16... g6 {[%clk
0:02:33.6]} 17. h4 {[%clk 0:01:34.3]} 17... h6 {[%clk 0:02:28.4]} 18. Nh3 {[%clk
0:01:23]} 18... h5 {[%clk 0:02:27.8]} 19. Nf2 {[%clk 0:01:16.9]} 19... Bc6
{[%clk 0:02:25.1]} 20. Kd2 {[%clk 0:01:17.6]} 20... Qe7 {[%clk 0:02:26.1]} 21.
Na3 {[%clk 0:01:18.3]} 21... Nd7 {[%clk 0:02:22.7]} 22. g4 {[%clk 0:01:12.7]}
22... hxg4 {[%clk 0:02:15]} 23. Qxg4 {[%clk 0:01:12.2]} 23... Kd8 {[%clk
0:02:07.6]} 24. h5 {[%clk 0:01:12.1]} 24... f5 {[%clk 0:01:49.1]} 25. Qxg6
{[%clk 0:01:09.9]} 25... Nf8 {[%clk 0:01:49.7]} 26. Qg5 {[%clk 0:01:05.7]} 26...
Be8 {[%clk 0:01:39.2]} 27. Rag1 {[%clk 0:00:47.8]} 27... Nc7 {[%clk 0:01:33]}
28. Qxe7+ {[%clk 0:00:43.1]} 28... Kxe7 {[%clk 0:01:34.9]} 29. Rg7+ {[%clk
0:00:43.9]} 29... Bf7 {[%clk 0:01:36.3]} 30. h6 {[%clk 0:00:41.9]} 30... Ne8
{[%clk 0:01:36.2]} 31. Rg5 {[%clk 0:00:32.7]} 31... Ng6 {[%clk 0:01:25.3]} 32.
Ke3 {[%clk 0:00:30.5]} 32... Nc7 {[%clk 0:01:20.5]} 33. h7 {[%clk 0:00:19.6]}
33... Kf8 {[%clk 0:01:16.3]} 34. Ng4 {[%clk 0:00:19.6]} 34... Ne8 {[%clk
0:01:08.7]} 35. Nf6 {[%clk 0:00:18.4]} 35... Nxf6 {[%clk 0:01:08.2]} 36. exf6
{[%clk 0:00:19.5]} 36... Be8 {[%clk 0:00:57.2]} 37. Rh6 {[%clk 0:00:09.7]} 37...
Ra7 {[%clk 0:00:58.3]} 38. Rgxg6 {[%clk 0:00:07.4]} 38... Bxg6 {[%clk
0:01:00.2]} 39. Rxg6 {[%clk 0:00:08.9]} 39... Raxh7 {[%clk 0:01:00.4]} 40. Bxa4
{[%clk 0:00:09.6]} 40... Rh2 {[%clk 0:01:00.9]} 41. Rg3 {[%clk 0:00:08.8]} 41...
Ra2 {[%clk 0:00:59]} 42. Nxc4 {[%clk 0:00:07.6]} 42... dxc4 {[%clk 0:00:57.5]}
43. Bb5 {[%clk 0:00:07.6]} 43... Rc2 {[%clk 0:00:57.6]} 44. Bxc4 {[%clk
0:00:07.9]} 44... Rxc3+ {[%clk 0:00:57.2]} 45. Bd3 {[%clk 0:00:09.4]} 45... Kf7
{[%clk 0:00:58.3]} 46. d5 {[%clk 0:00:09.7]} 46... Rd8 {[%clk 0:00:52.4]} 47.
dxe6+ {[%clk 0:00:09.9]} 47... Kxf6 {[%clk 0:00:47.5]} 48. Ke2 {[%clk
0:00:10.8]} 48... Re8 {[%clk 0:00:44.1]} 49. Rh3 {[%clk 0:00:10.8]} 49... Rxe6+
{[%clk 0:00:41.2]} 50. Kd2 {[%clk 0:00:12]} 50... Rc5 {[%clk 0:00:39.9]} 51.
Rh6+ {[%clk 0:00:13.1]} 51... Ke7 {[%clk 0:00:41.5]} 52. Rh5 {[%clk 0:00:13.9]}
52... Rd6 {[%clk 0:00:42.5]} 53. Ke2 {[%clk 0:00:14.8]} 53... Rdd5 {[%clk
0:00:42.1]} 54. Rh7+ {[%clk 0:00:15.2]} 54... Kf6 {[%clk 0:00:43.4]} 55. Rh6+
{[%clk 0:00:16.5]} 55... Kg7 {[%clk 0:00:44.9]} 56. Rh5 {[%clk 0:00:17.8]} 56...
Ra5 {[%clk 0:00:46.2]} 57. Rg5+ {[%clk 0:00:18.8]} 57... Kf6 {[%clk 0:00:47.3]}
58. Bc4 {[%clk 0:00:16.4]} 58... Rd4 {[%clk 0:00:48]} 59. Bb3 {[%clk 0:00:14.9]}
59... Rxf4 {[%clk 0:00:48.9]} 60. Rg8 {[%clk 0:00:16]} 60... Re5+ {[%clk
0:00:50.3]} 61. Kd2 {[%clk 0:00:16.6]} 61... Rf2+ {[%clk 0:00:51.5]} 62. Kd1
{[%clk 0:00:17.7]} 62... Rh2 {[%clk 0:00:48.2]} 63. Bc4 {[%clk 0:00:18.4]} 63...
Ra5 {[%clk 0:00:48.2]} 64. Rf8+ {[%clk 0:00:12.4]} 64... Kg5 {[%clk 0:00:47.2]}
65. Rg8+ {[%clk 0:00:13.6]} 65... Kf4 {[%clk 0:00:48.2]} 0-1

[Event "*** Titled Tuesday 3|2 Blitz"]
[Site "Chess.com"]
[Date "2016.01.05"]
[Round "9"]
[White "GrigorGrigorov"]
[Black "chessdude"]
[Result "0-1"]
[WhiteElo "2502"]
[BlackElo "2371"]
[TimeControl "180+2"]
[EndTime "18:54:49 PST"]
[Termination "chessdude won by resignation"]

1. e4 {[%clk 0:03:01.9]} 1... c5 {[%clk 0:02:56.9]} 2. c3 {[%clk 0:03:02]} 2...
Nf6 {[%clk 0:02:55.7]} 3. e5 {[%clk 0:03:02.8]} 3... Nd5 {[%clk 0:02:57.1]} 4.
d4 {[%clk 0:03:03.6]} 4... cxd4 {[%clk 0:02:57.2]} 5. Nf3 {[%clk 0:03:04.1]}
5... Nc6 {[%clk 0:02:57.6]} 6. cxd4 {[%clk 0:03:04.8]} 6... d6 {[%clk
0:02:58.8]} 7. Bc4 {[%clk 0:03:05]} 7... Nb6 {[%clk 0:02:59.8]} 8. Bb5 {[%clk
0:03:05.4]} 8... dxe5 {[%clk 0:03:00.7]} 9. Nxe5 {[%clk 0:03:05.7]} 9... Bd7
{[%clk 0:03:01.7]} 10. Nxd7 {[%clk 0:03:06.7]} 10... Qxd7 {[%clk 0:03:02.5]} 11.
Nc3 {[%clk 0:03:08.2]} 11... e6 {[%clk 0:03:00.2]} 12. O-O {[%clk 0:03:09]}
12... Be7 {[%clk 0:03:00.4]} 13. Qg4 {[%clk 0:03:09.1]} 13... O-O {[%clk
0:03:00.2]} 14. Bxc6 {[%clk 0:03:05.7]} 14... bxc6 {[%clk 0:03:00]} 15. Bh6
{[%clk 0:03:06.8]} 15... Bf6 {[%clk 0:02:57.3]} 16. Rad1 {[%clk 0:03:00]} 16...
Kh8 {[%clk 0:02:49.6]} 17. Ne4 {[%clk 0:03:00.1]} 17... Qe7 {[%clk 0:02:50.1]}
18. Bg5 {[%clk 0:02:49.4]} 18... Bxg5 {[%clk 0:02:48.7]} 19. Qxg5 {[%clk
0:02:48.3]} 19... Qxg5 {[%clk 0:02:48.2]} 20. Nxg5 {[%clk 0:02:48.8]} 20... Kg8
{[%clk 0:02:47.8]} 21. Rc1 {[%clk 0:02:48.7]} 21... Rac8 {[%clk 0:02:48.4]} 22.
Rc2 {[%clk 0:02:48.5]} 22... Rfd8 {[%clk 0:02:48.2]} 23. Nf3 {[%clk 0:02:48.7]}
23... f6 {[%clk 0:02:46.3]} 24. Rfc1 {[%clk 0:02:47.6]} 24... Rd6 {[%clk
0:02:44.6]} 25. Kf1 {[%clk 0:02:47]} 25... Kf7 {[%clk 0:02:44]} 26. Rc5 {[%clk
0:02:46.6]} 26... g5 {[%clk 0:02:37.6]} 27. h3 {[%clk 0:02:43.8]} 27... h5
{[%clk 0:02:36.1]} 28. Ra5 {[%clk 0:02:40]} 28... Rc7 {[%clk 0:02:36]} 29. g4
{[%clk 0:02:30.4]} 29... h4 {[%clk 0:02:36.2]} 30. Rc3 {[%clk 0:02:15.8]} 30...
Nd5 {[%clk 0:02:35]} 31. Rca3 {[%clk 0:02:16.6]} 31... Rdd7 {[%clk 0:02:36.6]}
32. Kg2 {[%clk 0:02:17.1]} 32... Nf4+ {[%clk 0:02:37.6]} 33. Kh2 {[%clk
0:02:17.7]} 33... Rb7 {[%clk 0:02:36.8]} 34. b3 {[%clk 0:02:16]} 34... Ke7
{[%clk 0:02:31.8]} 35. R3a4 {[%clk 0:02:16.3]} 35... Kd8 {[%clk 0:02:19.8]} 36.
Nd2 {[%clk 0:01:51]} 36... Rd5 {[%clk 0:02:01.5]} 37. Ne4 {[%clk 0:01:41.6]}
37... Rxa5 {[%clk 0:01:58.6]} 38. Rxa5 {[%clk 0:01:42.1]} 38... Ke7 {[%clk
0:01:52.4]} 39. Nc5 {[%clk 0:01:35.5]} 39... Rc7 {[%clk 0:01:53]} 40. Ra4 {[%clk
0:01:23.3]} 40... Kd6 {[%clk 0:01:52]} 41. Ne4+ {[%clk 0:01:23.7]} 41... Ke7
{[%clk 0:01:53.4]} 42. Nc5 {[%clk 0:01:23.6]} 42... f5 {[%clk 0:01:54.4]} 43.
gxf5 {[%clk 0:01:17.4]} 43... exf5 {[%clk 0:01:55]} 44. Ra5 {[%clk 0:01:19]}
44... Kd6 {[%clk 0:01:53.6]} 45. Na6 {[%clk 0:01:11.9]} 45... Rf7 {[%clk
0:01:54.2]} 46. Nb4 {[%clk 0:01:11]} 46... Ne2 {[%clk 0:01:08.6]} 47. Nc2 {[%clk
0:01:02.8]} 47... g4 {[%clk 0:01:07.1]} 48. a3 {[%clk 0:00:43.7]} 48... g3+
{[%clk 0:01:04.7]} 49. fxg3 {[%clk 0:00:42.6]} 49... hxg3+ {[%clk 0:01:05.8]}
50. Kg2 {[%clk 0:00:43.8]} 50... f4 {[%clk 0:01:07.4]} 51. Kf3 {[%clk
0:00:28.8]} 51... Ng1+ {[%clk 0:01:06.2]} 52. Kg2 {[%clk 0:00:28.7]} 52... Ne2
{[%clk 0:01:03.3]} 53. Kf3 {[%clk 0:00:29.2]} 53... Rg7 {[%clk 0:00:58.5]} 54.
Ne1 {[%clk 0:00:21.2]} 54... Nxd4+ {[%clk 0:00:55.4]} 55. Kxf4 {[%clk 0:00:22]}
55... g2 {[%clk 0:00:54.5]} 56. Nxg2 {[%clk 0:00:23.5]} 56... Rxg2 {[%clk
0:00:55.9]} 57. Rxa7 {[%clk 0:00:24.7]} 57... Nxb3 {[%clk 0:00:56.3]} 58. h4
{[%clk 0:00:26.3]} 58... Nd4 {[%clk 0:00:56.3]} 59. h5 {[%clk 0:00:25]} 59...
Ne6+ {[%clk 0:00:56.7]} 60. Kf3 {[%clk 0:00:23.1]} 60... Rg5 {[%clk 0:00:53.1]}
61. h6 {[%clk 0:00:23.9]} 61... Rh5 {[%clk 0:00:44]} 62. h7 {[%clk 0:00:25.2]}
62... Rxh7 {[%clk 0:00:45]} 63. Rxh7 {[%clk 0:00:24]} 63... Ng5+ {[%clk
0:00:46.5]} 64. Ke3 {[%clk 0:00:25.6]} 64... Nxh7 {[%clk 0:00:48.1]} 65. Kd4
{[%clk 0:00:27.3]} 65... Nf6 {[%clk 0:00:49.8]} 66. a4 {[%clk 0:00:28.9]} 66...
Nd7 {[%clk 0:00:51.2]} 67. a5 {[%clk 0:00:30.5]} 67... Kc7 {[%clk 0:00:52.9]}
0-1